[Event "*** Titled Tuesday Blitz"]
[Site "Chess.com"]
[Date "2020.10.27"]
[Round "5"]
[White "FairChess_on_YouTube"]
[Black "Gloomy_Wanderer"]
[Result "1-0"]
[WhiteElo "2974"]
[BlackElo "2707"]
[TimeControl "180+1"]
[EndTime "10:55:58 PDT"]
[Termination "FairChess_on_YouTube won by resignation"]

1. d4 {[%clk 0:03:00.9]} 1... Nf6 {[%clk 0:02:57.6]} 2. c4 {[%clk 0:03:01.1]}
2... e6 {[%clk 0:02:57.6]} 3. Nf3 {[%clk 0:02:59.8]} 3... d5 {[%clk 0:02:57.5]}
4. Bg5 {[%clk 0:02:54.3]} 4... Bb4+ {[%clk 0:02:56.7]} 5. Nbd2 {[%clk
0:02:53.3]} 5... dxc4 {[%clk 0:02:55.6]} 6. e4 {[%clk 0:02:52.5]} 6... Bxd2+
{[%clk 0:02:37.1]} 7. Nxd2 {[%clk 0:02:36.5]} 7... Qxd4 {[%clk 0:02:25.5]} 8. f3
{[%clk 0:02:35.6]} 8... Qxb2 {[%clk 0:01:54.3]} 9. Nxc4 {[%clk 0:02:35.1]} 9...
Qb4+ {[%clk 0:01:54.1]} 10. Bd2 {[%clk 0:02:31.3]} 10... Qe7 {[%clk 0:01:51.2]}
11. Qa4+ {[%clk 0:02:25.3]} 11... Bd7 {[%clk 0:01:43.7]} 12. Qb3 {[%clk
0:02:23]} 12... b6 {[%clk 0:01:37.7]} 13. Bg5 {[%clk 0:02:07.1]} 13... e5 {[%clk
0:01:29.8]} 14. Ne3 {[%clk 0:01:59.6]} 14... Be6 {[%clk 0:01:28.9]} 15. Qc3
{[%clk 0:01:53.3]} 15... Nbd7 {[%clk 0:01:22.9]} 16. Bb5 {[%clk 0:01:49]} 16...
O-O {[%clk 0:01:18.8]} 17. Bxd7 {[%clk 0:01:48.8]} 17... Qxd7 {[%clk 0:01:16.2]}
18. Qxe5 {[%clk 0:01:48.4]} 18... Ne8 {[%clk 0:01:05.4]} 19. Rd1 {[%clk
0:01:47.8]} 19... Qc6 {[%clk 0:00:50.8]} 20. Be7 {[%clk 0:01:46.1]} 20... f6
{[%clk 0:00:51]} 21. Qb2 {[%clk 0:01:38]} 21... Rf7 {[%clk 0:00:51]} 22. Ba3
{[%clk 0:01:38.5]} 22... Rd7 {[%clk 0:00:50.4]} 23. Rxd7 {[%clk 0:01:37.3]}
23... Qxd7 {[%clk 0:00:50.1]} 24. O-O {[%clk 0:01:37.7]} 24... c5 {[%clk
0:00:49.9]} 25. Rd1 {[%clk 0:01:34.8]} 25... Qe7 {[%clk 0:00:50.1]} 26. Qd2
{[%clk 0:01:21.6]} 26... Nc7 {[%clk 0:00:42.1]} 27. Bb2 {[%clk 0:01:21.6]} 27...
Re8 {[%clk 0:00:36.3]} 28. g4 {[%clk 0:01:20.7]} 28... Qf7 {[%clk 0:00:29.2]}
29. Qd6 {[%clk 0:01:08.3]} 29... Nb5 {[%clk 0:00:23.9]} 30. Qc6 {[%clk
0:01:07.9]} 30... Nd4 {[%clk 0:00:17.9]} 31. Bxd4 {[%clk 0:01:07.8]} 31... cxd4
{[%clk 0:00:18.8]} 32. Rxd4 {[%clk 0:01:08.3]} 32... Rc8 {[%clk 0:00:18.9]} 33.
Qa4 {[%clk 0:00:58.1]} 33... h6 {[%clk 0:00:18.4]} 34. Kg2 {[%clk 0:00:56.8]}
34... Rc3 {[%clk 0:00:17.3]} 35. Nd5 {[%clk 0:00:44.4]} 35... Bxd5 {[%clk
0:00:17.1]} 36. exd5 {[%clk 0:00:45.3]} 36... Qe7 {[%clk 0:00:16.2]} 37. Re4
{[%clk 0:00:44.7]} 37... Qd6 {[%clk 0:00:13.7]} 38. Re8+ {[%clk 0:00:43]} 38...
Kf7 {[%clk 0:00:14]} 39. Re6 {[%clk 0:00:42]} 39... Qd8 {[%clk 0:00:11.7]} 40.
Qxa7+ {[%clk 0:00:39.3]} 40... Kg6 {[%clk 0:00:12.1]} 41. Re7 {[%clk 0:00:36]}
41... Rc2+ {[%clk 0:00:10.6]} 42. Kh3 {[%clk 0:00:34.4]} 42... Qg8 {[%clk
0:00:10.8]} 43. Qd7 {[%clk 0:00:34.3]} 43... Kh7 {[%clk 0:00:10]} 44. Qf5+
{[%clk 0:00:34.2]} 1-0

[Event "*** Titled Tuesday Blitz"]
[Site "Chess.com"]
[Date "2020.10.27"]
[Round "5"]
[White "DenishevM"]
[Black "Juanovic"]
[Result "1-0"]
[WhiteElo "2511"]
[BlackElo "2099"]
[TimeControl "180+1"]
[EndTime "10:55:59 PDT"]
[Termination "DenishevM won by resignation"]

1. e4 {[%clk 0:03:00.9]} 1... c5 {[%clk 0:02:59.6]} 2. Nf3 {[%clk 0:03:00.7]}
2... d6 {[%clk 0:02:58.8]} 3. Bb5+ {[%clk 0:03:00.5]} 3... Nd7 {[%clk
0:02:58.4]} 4. d4 {[%clk 0:03:00]} 4... a6 {[%clk 0:02:56.1]} 5. Bxd7+ {[%clk
0:02:58.7]} 5... Qxd7 {[%clk 0:02:56.9]} 6. O-O {[%clk 0:02:53.2]} 6... cxd4
{[%clk 0:02:45.7]} 7. Nxd4 {[%clk 0:02:54.1]} 7... Nf6 {[%clk 0:02:34.4]} 8. Nc3
{[%clk 0:02:53.8]} 8... e6 {[%clk 0:02:32.6]} 9. Be3 {[%clk 0:02:50.1]} 9... Be7
{[%clk 0:02:23.1]} 10. f4 {[%clk 0:02:45.7]} 10... O-O {[%clk 0:02:20.8]} 11.
Qf3 {[%clk 0:02:45.2]} 11... Qc7 {[%clk 0:02:06.7]} 12. Rae1 {[%clk 0:02:43.1]}
12... Bd7 {[%clk 0:02:06.6]} 13. g4 {[%clk 0:02:32.5]} 13... Bc6 {[%clk
0:02:06.1]} 14. g5 {[%clk 0:02:32.7]} 14... Nd7 {[%clk 0:02:03.1]} 15. h4 {[%clk
0:02:31.8]} 15... b5 {[%clk 0:01:44.6]} 16. a3 {[%clk 0:02:23.7]} 16... Bb7
{[%clk 0:01:44.5]} 17. h5 {[%clk 0:02:21.8]} 17... Nc5 {[%clk 0:01:44.2]} 18.
Bf2 {[%clk 0:02:13.1]} 18... f5 {[%clk 0:01:40.1]} 19. gxf6 {[%clk 0:02:08.5]}
19... Rxf6 {[%clk 0:01:37.1]} 20. Bh4 {[%clk 0:02:05.1]} 20... Raf8 {[%clk
0:01:32.9]} 21. Bxf6 {[%clk 0:02:01.3]} 21... Bxf6 {[%clk 0:01:30.1]} 22. Nde2
{[%clk 0:01:46.6]} 22... Qc6 {[%clk 0:00:55.7]} 23. Qh3 {[%clk 0:01:38.2]} 23...
d5 {[%clk 0:00:53.9]} 24. e5 {[%clk 0:01:35]} 24... Bd8 {[%clk 0:00:51]} 25. Nd4
{[%clk 0:01:33.6]} 25... Qb6 {[%clk 0:00:48.3]} 26. Kh1 {[%clk 0:01:33.5]} 26...
Bc8 {[%clk 0:00:46]} 27. Nxd5 {[%clk 0:01:28.9]} 27... exd5 {[%clk 0:00:43.9]}
28. Qxc8 {[%clk 0:01:29.8]} 28... Bh4 {[%clk 0:00:37.2]} 29. Qg4 {[%clk
0:01:20.4]} 29... Bxe1 {[%clk 0:00:36.9]} 30. Rxe1 {[%clk 0:01:21.3]} 30... Ne4
{[%clk 0:00:32.5]} 31. Rxe4 {[%clk 0:01:21.3]} 31... dxe4 {[%clk 0:00:31.1]} 32.
Nf5 {[%clk 0:01:22.2]} 32... Rxf5 {[%clk 0:00:15.3]} 33. Qxf5 {[%clk 0:01:23.1]}
33... Qe3 {[%clk 0:00:13]} 34. e6 {[%clk 0:01:03]} 34... Qf3+ {[%clk 0:00:10.2]}
35. Kh2 {[%clk 0:01:03.4]} 35... Qf2+ {[%clk 0:00:05.5]} 36. Kh3 {[%clk
0:01:03.9]} 36... Qf3+ {[%clk 0:00:02.9]} 37. Kh4 {[%clk 0:01:04.1]} 37... Qh1+
{[%clk 0:00:01.9]} 38. Qh3 {[%clk 0:00:56.6]} 38... Qe1+ {[%clk 0:00:01.9]} 39.
Kg5 {[%clk 0:00:54.3]} 39... Kf8 {[%clk 0:00:01.3]} 40. Qf5+ {[%clk 0:00:53.5]}
40... Ke7 {[%clk 0:00:01.7]} 41. Qf7+ {[%clk 0:00:53.6]} 41... Kd6 {[%clk
0:00:02.6]} 42. Qd7+ {[%clk 0:00:54.5]} 42... Kc5 {[%clk 0:00:03.5]} 43. Qc7+
{[%clk 0:00:44.8]} 43... Kd4 {[%clk 0:00:03.2]} 44. Qc3+ {[%clk 0:00:44.3]}
44... Qxc3 {[%clk 0:00:02.5]} 45. bxc3+ {[%clk 0:00:45.2]} 45... Kxc3 {[%clk
0:00:02.1]} 46. e7 {[%clk 0:00:46.1]} 46... e3 {[%clk 0:00:03]} 47. e8=Q {[%clk
0:00:47]} 47... Kd2 {[%clk 0:00:03.7]} 48. h6 {[%clk 0:00:46.5]} 48... e2 {[%clk
0:00:04.2]} 49. hxg7 {[%clk 0:00:46.6]} 49... e1=Q {[%clk 0:00:04.1]} 50. Qxe1+
{[%clk 0:00:47.5]} 50... Kxe1 {[%clk 0:00:05]} 51. g8=Q {[%clk 0:00:48.3]} 1-0

[Event "*** Titled Tuesday Blitz"]
[Site "Chess.com"]
[Date "2020.10.27"]
[Round "5"]
[White "politeplayer"]
[Black "GelmanAlexander"]
[Result "0-1"]
[WhiteElo "2217"]
[BlackElo "2581"]
[TimeControl "180+1"]
[EndTime "10:56:01 PDT"]
[Termination "GelmanAlexander won on time"]

1. e4 {[%clk 0:03:00.9]} 1... c5 {[%clk 0:02:59.7]} 2. d4 {[%clk 0:02:59]} 2...
cxd4 {[%clk 0:02:59.4]} 3. c3 {[%clk 0:02:59.5]} 3... dxc3 {[%clk 0:02:59.5]} 4.
Nxc3 {[%clk 0:02:58.9]} 4... e6 {[%clk 0:02:59.8]} 5. Bc4 {[%clk 0:02:58.3]}
5... a6 {[%clk 0:02:59.3]} 6. Nf3 {[%clk 0:02:58.1]} 6... b5 {[%clk 0:02:59.5]}
7. Bb3 {[%clk 0:02:56.6]} 7... Nc6 {[%clk 0:02:59.7]} 8. O-O {[%clk 0:02:56.2]}
8... Na5 {[%clk 0:02:57.9]} 9. Bd5 {[%clk 0:02:40.5]} 9... exd5 {[%clk
0:02:37.7]} 10. Nxd5 {[%clk 0:02:39.5]} 10... Bb7 {[%clk 0:02:17.9]} 11. Re1
{[%clk 0:02:35.4]} 11... Be7 {[%clk 0:02:15.1]} 12. Be3 {[%clk 0:02:33.6]} 12...
Bxd5 {[%clk 0:02:09.4]} 13. exd5 {[%clk 0:02:33.8]} 13... d6 {[%clk 0:01:53.2]}
14. Nd4 {[%clk 0:02:33.4]} 14... Kf8 {[%clk 0:01:25.4]} 15. Qf3 {[%clk
0:01:55.2]} 15... Bf6 {[%clk 0:01:16.2]} 16. Rac1 {[%clk 0:01:38.4]} 16... Ne7
{[%clk 0:01:08.9]} 17. Bg5 {[%clk 0:01:33.4]} 17... Ng6 {[%clk 0:00:36.8]} 18.
Rc7 {[%clk 0:01:03.3]} 18... Qxc7 {[%clk 0:00:28.4]} 19. Bxf6 {[%clk 0:01:02.5]}
19... gxf6 {[%clk 0:00:28.4]} 20. Qxf6 {[%clk 0:01:01.8]} 20... Re8 {[%clk
0:00:21.7]} 21. Ne6+ {[%clk 0:00:41.6]} 21... Rxe6 {[%clk 0:00:21.7]} 22. dxe6
{[%clk 0:00:42]} 22... Qe7 {[%clk 0:00:19.3]} 23. Qc3 {[%clk 0:00:39.7]} 23...
Nc4 {[%clk 0:00:18]} 24. f4 {[%clk 0:00:22.1]} 24... fxe6 {[%clk 0:00:14.6]} 25.
f5 {[%clk 0:00:22.4]} 25... Nge5 {[%clk 0:00:14.6]} 26. b3 {[%clk 0:00:20.7]}
26... Nb6 {[%clk 0:00:11.3]} 27. f6 {[%clk 0:00:17.5]} 27... Qd7 {[%clk
0:00:09.1]} 28. Qe3 {[%clk 0:00:15.6]} 28... Nd5 {[%clk 0:00:08.9]} 29. Qh6+
{[%clk 0:00:15.5]} 29... Ke8 {[%clk 0:00:08.8]} 30. Rc1 {[%clk 0:00:12.7]} 30...
Rf8 {[%clk 0:00:07.7]} 31. g3 {[%clk 0:00:01.3]} 31... Qa7+ {[%clk 0:00:07.5]}
0-1

[Event "*** Titled Tuesday Blitz"]
[Site "Chess.com"]
[Date "2020.10.27"]
[Round "5"]
[White "Jungle_Jaguar"]
[Black "dopolian"]
[Result "1-0"]
[WhiteElo "2634"]
[BlackElo "2428"]
[TimeControl "180+1"]
[EndTime "10:56:01 PDT"]
[Termination "Jungle_Jaguar won on time"]

1. e4 {[%clk 0:02:59.5]} 1... e5 {[%clk 0:02:59.2]} 2. Nf3 {[%clk 0:02:57.7]}
2... Nc6 {[%clk 0:02:59.3]} 3. Bb5 {[%clk 0:02:57.5]} 3... a6 {[%clk 0:02:59.2]}
4. Ba4 {[%clk 0:02:57.7]} 4... Nf6 {[%clk 0:02:59.2]} 5. O-O {[%clk 0:02:57.5]}
5... Nxe4 {[%clk 0:02:58.7]} 6. d4 {[%clk 0:02:56]} 6... b5 {[%clk 0:02:59.3]}
7. Bb3 {[%clk 0:02:56.4]} 7... d5 {[%clk 0:02:59.8]} 8. dxe5 {[%clk 0:02:56]}
8... Be6 {[%clk 0:03:00.2]} 9. c3 {[%clk 0:02:56.4]} 9... Bc5 {[%clk 0:02:59.8]}
10. Bc2 {[%clk 0:02:42.9]} 10... O-O {[%clk 0:02:57.5]} 11. Nbd2 {[%clk
0:02:42.8]} 11... f5 {[%clk 0:02:57.6]} 12. exf6 {[%clk 0:02:31.7]} 12... Nxf6
{[%clk 0:02:55.5]} 13. Nb3 {[%clk 0:02:28.7]} 13... Bb6 {[%clk 0:02:37]} 14. Bg5
{[%clk 0:01:48.7]} 14... h6 {[%clk 0:02:29.6]} 15. Bh4 {[%clk 0:01:48.4]} 15...
Qd7 {[%clk 0:02:17.9]} 16. Qd3 {[%clk 0:01:43]} 16... Ne4 {[%clk 0:02:16.8]} 17.
Rad1 {[%clk 0:01:31.1]} 17... Rae8 {[%clk 0:01:31.6]} 18. Rfe1 {[%clk
0:01:28.9]} 18... Qf7 {[%clk 0:01:30]} 19. h3 {[%clk 0:00:45.1]} 19... g5 {[%clk
0:01:18.6]} 20. Rxe4 {[%clk 0:00:42.8]} 20... dxe4 {[%clk 0:01:15]} 21. Qxe4
{[%clk 0:00:43.7]} 21... Bxb3 {[%clk 0:00:58.4]} 22. Qxc6 {[%clk 0:00:35.5]}
22... Bxc2 {[%clk 0:00:52]} 23. Rd7 {[%clk 0:00:12.8]} 23... Qe6 {[%clk
0:00:39]} 24. Qxe6+ {[%clk 0:00:05.1]} 24... Rxe6 {[%clk 0:00:39]} 25. Bg3
{[%clk 0:00:04]} 25... Be4 {[%clk 0:00:31.2]} 26. Nd4 {[%clk 0:00:03.4]} 26...
Bxd4 {[%clk 0:00:30.4]} 27. Rxd4 {[%clk 0:00:03.9]} 27... Bc6 {[%clk 0:00:16.7]}
28. Bxc7 {[%clk 0:00:04]} 1-0

[Event "*** Titled Tuesday Blitz"]
[Site "Chess.com"]
[Date "2020.10.27"]
[Round "5"]
[White "MarceloPlaya"]
[Black "jacky72"]
[Result "0-1"]
[WhiteElo "2283"]
[BlackElo "2522"]
[TimeControl "180+1"]
[EndTime "10:56:01 PDT"]
[Termination "jacky72 won on time"]

1. e4 {[%clk 0:02:06.9]} 1... g6 {[%clk 0:02:57.8]} 2. d4 {[%clk 0:02:06.3]}
2... Bg7 {[%clk 0:02:58.1]} 3. Nc3 {[%clk 0:02:06.2]} 3... a6 {[%clk 0:02:59]}
4. Be3 {[%clk 0:02:05]} 4... b5 {[%clk 0:02:59]} 5. Qd2 {[%clk 0:02:04.2]} 5...
d6 {[%clk 0:02:59.3]} 6. O-O-O {[%clk 0:02:03.3]} 6... Bb7 {[%clk 0:02:59.7]} 7.
f3 {[%clk 0:02:02.2]} 7... Nd7 {[%clk 0:02:57.6]} 8. Kb1 {[%clk 0:02:01.6]} 8...
c5 {[%clk 0:02:58.1]} 9. h4 {[%clk 0:01:57.4]} 9... h5 {[%clk 0:02:57.2]} 10.
Nce2 {[%clk 0:01:40.7]} 10... Ngf6 {[%clk 0:02:55]} 11. Nc1 {[%clk 0:01:36.4]}
11... c4 {[%clk 0:02:54]} 12. d5 {[%clk 0:01:26.5]} 12... Qc7 {[%clk 0:02:51.4]}
13. Bd4 {[%clk 0:01:25.7]} 13... a5 {[%clk 0:02:39.2]} 14. g4 {[%clk 0:01:18.6]}
14... hxg4 {[%clk 0:02:38.4]} 15. h5 {[%clk 0:01:18.2]} 15... Rxh5 {[%clk
0:02:32.8]} 16. Rxh5 {[%clk 0:01:15.6]} 16... gxh5 {[%clk 0:02:24.1]} 17. fxg4
{[%clk 0:01:14.3]} 17... hxg4 {[%clk 0:02:23.5]} 18. Qg5 {[%clk 0:01:05.1]}
18... Bf8 {[%clk 0:02:19.6]} 19. Be2 {[%clk 0:00:56.1]} 19... Nxe4 {[%clk
0:02:17.4]} 20. Qxg4 {[%clk 0:00:55.5]} 20... Bxd5 {[%clk 0:02:14.8]} 21. Bf3
{[%clk 0:00:54]} 21... Nef6 {[%clk 0:02:08.8]} 22. Bxf6 {[%clk 0:00:46.9]} 22...
Nxf6 {[%clk 0:02:09.7]} 23. Qh3 {[%clk 0:00:39.5]} 23... Bxf3 {[%clk 0:02:05.4]}
24. Nxf3 {[%clk 0:00:38.6]} 24... Qd7 {[%clk 0:02:00.9]} 25. Qh4 {[%clk
0:00:30.7]} 25... O-O-O {[%clk 0:01:58.7]} 26. Qe1 {[%clk 0:00:26.8]} 26... Qb7
{[%clk 0:01:50.2]} 27. Nd4 {[%clk 0:00:23.7]} 27... e6 {[%clk 0:01:45.5]} 28.
Qxa5 {[%clk 0:00:22]} 28... Nd5 {[%clk 0:01:38.3]} 29. Nxb5 {[%clk 0:00:20.4]}
29... Bg7 {[%clk 0:01:35.4]} 30. Ne2 {[%clk 0:00:18.8]} 30... Kd7 {[%clk
0:01:33.3]} 31. Nec3 {[%clk 0:00:18.1]} 31... Nxc3+ {[%clk 0:01:32]} 32. bxc3
{[%clk 0:00:17.8]} 32... Rb8 {[%clk 0:01:31.4]} 33. Rxd6+ {[%clk 0:00:16.8]}
33... Ke7 {[%clk 0:01:31.7]} 34. a4 {[%clk 0:00:14.7]} 34... Qh1+ {[%clk
0:01:30.9]} 35. Ka2 {[%clk 0:00:13.7]} 35... Qb7 {[%clk 0:01:23.5]} 36. Qb4
{[%clk 0:00:13.2]} 36... Kf6 {[%clk 0:01:18.8]} 37. Qxc4 {[%clk 0:00:12.1]}
37... Kg6 {[%clk 0:01:19.1]} 38. Qg4+ {[%clk 0:00:11.1]} 38... Kh7 {[%clk
0:01:19.4]} 39. Rd3 {[%clk 0:00:10.7]} 39... f5 {[%clk 0:01:05.5]} 40. Rh3+
{[%clk 0:00:07.3]} 40... Kg8 {[%clk 0:01:05.6]} 41. Qc4 {[%clk 0:00:06]} 41...
Qa6 {[%clk 0:01:02.2]} 42. Re3 {[%clk 0:00:05.1]} 42... Rb6 {[%clk 0:01:00.1]}
43. Qc5 {[%clk 0:00:03.2]} 43... Qxa4+ {[%clk 0:00:59.1]} 44. Na3 {[%clk
0:00:02.2]} 44... Ra6 {[%clk 0:00:50.3]} 45. Qc8+ {[%clk 0:00:02]} 45... Kf7
{[%clk 0:00:50.1]} 46. Qc7+ {[%clk 0:00:01.8]} 46... Kf6 {[%clk 0:00:42.4]} 0-1

[Event "*** Titled Tuesday Blitz"]
[Site "Chess.com"]
[Date "2020.10.27"]
[Round "5"]
[White "tylityli"]
[Black "Chessmatus"]
[Result "0-1"]
[WhiteElo "2239"]
[BlackElo "2412"]
[TimeControl "180+1"]
[EndTime "10:56:01 PDT"]
[Termination "Chessmatus won on time"]

1. d4 {[%clk 0:02:56.1]} 1... Nf6 {[%clk 0:02:59.6]} 2. c4 {[%clk 0:02:55.5]}
2... g6 {[%clk 0:03:00.2]} 3. Nc3 {[%clk 0:02:54.7]} 3... d5 {[%clk 0:03:00.8]}
4. cxd5 {[%clk 0:02:54.2]} 4... Nxd5 {[%clk 0:03:01.7]} 5. Bd2 {[%clk
0:02:54.2]} 5... Bg7 {[%clk 0:02:58.9]} 6. e4 {[%clk 0:02:53.6]} 6... Nxc3
{[%clk 0:02:59.4]} 7. Bxc3 {[%clk 0:02:53.3]} 7... O-O {[%clk 0:03:00.1]} 8. Qd2
{[%clk 0:02:40]} 8... c5 {[%clk 0:02:56]} 9. d5 {[%clk 0:02:39.4]} 9... Bxc3
{[%clk 0:02:46.7]} 10. bxc3 {[%clk 0:02:40.3]} 10... e6 {[%clk 0:02:46.9]} 11.
Bc4 {[%clk 0:02:37.1]} 11... Qd6 {[%clk 0:02:27.6]} 12. Nf3 {[%clk 0:02:34.8]}
12... exd5 {[%clk 0:02:25.5]} 13. Bxd5 {[%clk 0:02:34.1]} 13... Rd8 {[%clk
0:02:11.6]} 14. Qh6 {[%clk 0:02:30.6]} 14... Qf6 {[%clk 0:01:58.4]} 15. e5
{[%clk 0:02:15.5]} 15... Qg7 {[%clk 0:01:55.8]} 16. Qxg7+ {[%clk 0:02:13.8]}
16... Kxg7 {[%clk 0:01:56.7]} 17. c4 {[%clk 0:02:12.4]} 17... Nc6 {[%clk
0:01:56.4]} 18. O-O {[%clk 0:02:10.4]} 18... Be6 {[%clk 0:01:51.3]} 19. Rad1
{[%clk 0:01:55]} 19... h6 {[%clk 0:01:45.4]} 20. h3 {[%clk 0:01:53.9]} 20... Kf8
{[%clk 0:01:43.1]} 21. a3 {[%clk 0:01:52.3]} 21... Ke7 {[%clk 0:01:43.5]} 22.
Rd3 {[%clk 0:01:44.7]} 22... Rd7 {[%clk 0:01:43.7]} 23. Rfd1 {[%clk 0:01:42.3]}
23... Rad8 {[%clk 0:01:44.1]} 24. Kf1 {[%clk 0:01:41.2]} 24... Na5 {[%clk
0:01:44.4]} 25. Ke2 {[%clk 0:01:08.3]} 25... Nxc4 {[%clk 0:01:40.9]} 26. Bxb7
{[%clk 0:00:55.6]} 26... Na5 {[%clk 0:01:33.1]} 27. Ba6 {[%clk 0:00:48.3]} 27...
c4 {[%clk 0:01:23.1]} 28. Rxd7+ {[%clk 0:00:44.2]} 28... Rxd7 {[%clk 0:01:19.1]}
29. Rc1 {[%clk 0:00:28.8]} 29... Rc7 {[%clk 0:01:07.9]} 30. Nd4 {[%clk
0:00:20.7]} 30... g5 {[%clk 0:01:04.6]} 31. g4 {[%clk 0:00:19.1]} 31... Rc5
{[%clk 0:01:03.4]} 32. f4 {[%clk 0:00:15.7]} 32... gxf4 {[%clk 0:01:02.6]} 33.
Kf3 {[%clk 0:00:15.7]} 33... Rxe5 {[%clk 0:01:00.6]} 34. Kxf4 {[%clk 0:00:16]}
34... Rc5 {[%clk 0:01:00.5]} 35. Re1 {[%clk 0:00:12.3]} 35... c3 {[%clk
0:00:58.9]} 36. Rc1 {[%clk 0:00:11.6]} 36... Nb3 {[%clk 0:00:57.8]} 37. Nxb3
{[%clk 0:00:10]} 37... Bxb3 {[%clk 0:00:58.7]} 38. h4 {[%clk 0:00:09]} 38... c2
{[%clk 0:00:58.6]} 39. g5 {[%clk 0:00:08.6]} 39... hxg5+ {[%clk 0:00:58.1]} 40.
hxg5 {[%clk 0:00:09.2]} 40... Kf8 {[%clk 0:00:58.5]} 41. Bd3 {[%clk 0:00:07.5]}
41... Rc3 {[%clk 0:00:58.2]} 42. Be4 {[%clk 0:00:07.2]} 42... a5 {[%clk
0:00:58.2]} 43. g6 {[%clk 0:00:05.3]} 43... fxg6 {[%clk 0:00:56.8]} 44. Bxg6
{[%clk 0:00:06.2]} 44... Ke7 {[%clk 0:00:57.2]} 45. Be4 {[%clk 0:00:05.4]} 45...
Kd6 {[%clk 0:00:57.4]} 46. Bf5 {[%clk 0:00:03.6]} 46... Kc5 {[%clk 0:00:57.8]}
47. Bd7 {[%clk 0:00:02.4]} 47... Kd4 {[%clk 0:00:57]} 48. Bf5 {[%clk 0:00:02]}
48... Ba4 {[%clk 0:00:57.1]} 49. Be4 {[%clk 0:00:01.5]} 49... Rc4 {[%clk
0:00:55.2]} 0-1

[Event "*** Titled Tuesday Blitz"]
[Site "Chess.com"]
[Date "2020.10.27"]
[Round "5"]
[White "S2PAc"]
[Black "MomchilPetkov"]
[Result "0-1"]
[WhiteElo "2800"]
[BlackElo "2647"]
[TimeControl "180+1"]
[EndTime "10:56:03 PDT"]
[Termination "MomchilPetkov won by resignation"]

1. d4 {[%clk 0:02:59.4]} 1... g6 {[%clk 0:02:58.9]} 2. g3 {[%clk 0:02:59.5]}
2... Bg7 {[%clk 0:02:59]} 3. Bg2 {[%clk 0:03:00.1]} 3... d6 {[%clk 0:02:59.1]}
4. e4 {[%clk 0:03:00.6]} 4... Nf6 {[%clk 0:02:54.7]} 5. Nc3 {[%clk 0:03:01]}
5... O-O {[%clk 0:02:53.7]} 6. Nge2 {[%clk 0:03:01.5]} 6... a6 {[%clk
0:02:50.5]} 7. O-O {[%clk 0:03:00.8]} 7... c6 {[%clk 0:02:37.6]} 8. a4 {[%clk
0:02:59.9]} 8... a5 {[%clk 0:02:35.3]} 9. h3 {[%clk 0:02:59.8]} 9... Na6 {[%clk
0:02:35.4]} 10. Be3 {[%clk 0:03:00.2]} 10... Nb4 {[%clk 0:02:35.6]} 11. Qd2
{[%clk 0:03:00.8]} 11... Qc7 {[%clk 0:02:31.6]} 12. Rad1 {[%clk 0:03:01.2]}
12... Nd7 {[%clk 0:02:25.9]} 13. g4 {[%clk 0:02:57.4]} 13... e5 {[%clk
0:02:22.8]} 14. f4 {[%clk 0:02:56.6]} 14... exd4 {[%clk 0:02:10.3]} 15. Bxd4
{[%clk 0:02:57.5]} 15... Nc5 {[%clk 0:02:04.4]} 16. f5 {[%clk 0:02:17.9]} 16...
Be5 {[%clk 0:01:41]} 17. Bxe5 {[%clk 0:02:09.1]} 17... dxe5 {[%clk 0:01:40.8]}
18. f6 {[%clk 0:02:10]} 18... Kh8 {[%clk 0:01:41.1]} 19. Ng3 {[%clk 0:01:25.7]}
19... Be6 {[%clk 0:01:38]} 20. b3 {[%clk 0:01:15.4]} 20... Rad8 {[%clk
0:01:17.7]} 21. Qh6 {[%clk 0:01:15.2]} 21... Rg8 {[%clk 0:01:18]} 22. Rxd8
{[%clk 0:01:15.2]} 22... Qxd8 {[%clk 0:01:18.1]} 23. Kh2 {[%clk 0:01:11.1]}
23... Nxc2 {[%clk 0:01:09.3]} 24. Nce2 {[%clk 0:01:08.1]} 24... Bxb3 {[%clk
0:00:48.9]} 25. Ng1 {[%clk 0:00:51.7]} 25... Nd4 {[%clk 0:00:39.9]} 26. h4
{[%clk 0:00:51]} 26... Qf8 {[%clk 0:00:33.8]} 27. Qe3 {[%clk 0:00:45.6]} 27...
Nce6 {[%clk 0:00:33.2]} 28. Nh3 {[%clk 0:00:45.5]} 28... Bxa4 {[%clk 0:00:27.7]}
29. Ng5 {[%clk 0:00:36.8]} 29... Bb5 {[%clk 0:00:23.3]} 30. Rh1 {[%clk
0:00:33.4]} 30... Nf4 {[%clk 0:00:22.8]} 31. Rd1 {[%clk 0:00:23.9]} 31... c5
{[%clk 0:00:20.8]} 32. Nf3 {[%clk 0:00:22.4]} 32... Nxf3+ {[%clk 0:00:20.2]} 33.
Bxf3 {[%clk 0:00:23.3]} 33... Qh6 {[%clk 0:00:17.6]} 34. h5 {[%clk 0:00:20.4]}
34... Qg5 {[%clk 0:00:17.7]} 35. Qf2 {[%clk 0:00:18.6]} 35... Qh4+ {[%clk
0:00:17.1]} 36. Kg1 {[%clk 0:00:19.1]} 36... Nh3+ {[%clk 0:00:17.5]} 37. Kg2
{[%clk 0:00:18.9]} 37... Nxf2 {[%clk 0:00:18.4]} 38. Kxf2 {[%clk 0:00:19.2]}
38... gxh5 {[%clk 0:00:17.3]} 39. Rh1 {[%clk 0:00:16.9]} 39... Qxh1 {[%clk
0:00:17.4]} 40. Nxh1 {[%clk 0:00:16.6]} 40... hxg4 {[%clk 0:00:17.7]} 41. Bg2
{[%clk 0:00:17.5]} 41... a4 {[%clk 0:00:17.9]} 42. Ng3 {[%clk 0:00:18.3]} 42...
a3 {[%clk 0:00:18.3]} 0-1